bitfinex/quotes_SOLUSD_20240718
["timestamp","ask_amount","ask_price","bid_price","bid_amount"]
[1721274796266,12.13,159.24,159.21,6.2809]
[1721274796654,12.13,159.24,159.2,15.7034]
[1721274796855,13.70009959,159.24,159.2,15.7034]
[1721274797056,13.70009959,159.24,159.2,22.75966538]
[1721274798456,1.57009298,159.23,159.2,21.9846]
[1721274798649,13.70019313,159.24,159.2,22.75994702]
[1721274800657,1.57019313,159.24,159.2,22.75994702]
[1721274800981,12.13,159.25,159.21,7.05612585]
[1721274801282,1.5700617,159.25,159.21,7.05612585]
[1721274801569,7.8494617,159.25,159.2,34.88973155]
[1721274801752,19.9794617,159.25,159.2,21.9847]
[1721274801947,6.2798,159.24,159.2,15.7034]
[1721274802163,1.57019181,159.23,159.2,15.7034]
[1721274803050,12.13,159.25,159.21,7.05625394]
[1721274803251,13.70003767,159.25,159.21,7.05625394]
[1721274805784,18.4098,159.24,159.2,15.7034]
[1721274805952,1.57017982,159.23,159.2,15.7034]
[1721274806159,12.13,159.22,159.18,6.2821]
[1721274806386,12.13,159.21,159.16,97.16713392]
[1721274807961,12.13,159.21,159.17,6.2823]
[1721274808685,1.57037628,159.2,159.17,6.2823]
[1721274808886,13.70037628,159.2,159.17,6.2823]
[1721274809054,12.13,159.2,159.17,6.2823]
[1721274810678,13.70045403,159.21,159.18,6.2821]
[1721274810877,13.70048623,159.22,159.19,6.2816]
[1721274812360,12.13,159.24,159.21,6.281]
[1721274812560,1.57018425,159.23,159.19,6.2817]
[1721274812779,12.13,159.22,159.19,6.2817]
[1721274813455,1.57034395,159.21,159.19,6.2817]
[1721274814158,13.70033298,159.22,159.19,6.2817]
[1721274815979,58.70030708,159.23,159.19,6.2817]
[1721274816769,64.98070708,159.23,159.18,15.7046]
[1721274816961,12.13,159.2,159.16,69.33103392]
[1721274817165,13.70059443,159.19,159.16,69.33103392]
[1721274817665,12.13,159.19,159.16,69.33103392]
[1721274818184,12.13,159.19,159.17,6.2825]
[1721274818997,13.70057331,159.2,159.17,6.2825]
[1721274819173,12.13,159.2,159.18,6.2821]
[1721274819484,13.70054234,159.21,159.18,6.2821]
[1721274819677,1.57054176,159.2,159.18,6.2821]
[1721274819883,1.57054176,159.2,159.17,6.2825]
[1721274820073,13.70054176,159.2,159.16,85.03743392]
[1721274820694,13.70054176,159.2,159.17,6.2825]
[1721274820898,1.57059094,159.19,159.17,6.2825]
[1721274821066,13.70059094,159.19,159.17,6.2825]
[1721274821262,1.5706443,159.18,159.17,6.2825]
[1721274822083,1.5706443,159.18,159.16,78.75453392]
[1721274822388,46.5706443,159.18,159.16,78.75453392]
[1721274822685,45.0,159.18,159.16,78.75453392]
[1721274822986,12.13,159.19,159.16,85.03743392]
[1721274823188,1.57071086,159.18,159.16,85.03743392]
[1721274823399,13.70071086,159.18,159.16,85.03743392]
[1721274823686,1.57071086,159.18,159.16,63.04813392]
[1721274823877,6.5203,159.22,159.16,63.04813392]
[1721274823878,12.13,159.17,159.16,63.04813392]
[1721274824185,57.13,159.17,159.16,63.04813392]
[1721274830885,58.7008701,159.17,159.16,63.04813392]
[1721274832777,64.9833701,159.17,159.16,63.04813392]
[1721274832974,63.4125,159.17,159.16,63.04813392]
[1721274833181,69.5145,159.17,159.16,63.04813392]
[1721274833805,89.5145,159.17,159.16,63.04813392]
[1721274839186,89.5145,159.17,159.16,23.97813392]
[1721274839383,91.08563872,159.17,159.16,23.97813392]
[1721274840707,107.39243872,159.17,159.16,22.55615615]
[1721274844812,19.98363872,159.17,159.16,22.55615615]
[1721274844996,18.4125,159.17,159.16,22.55615615]
[1721274846310,63.4125,159.17,159.16,22.55615615]
[1721274854721,63.4125,159.17,159.16,22.55615615]
[1721274862119,51.2825,159.17,159.16,22.55615615]
[1721274862320,63.4125,159.17,159.16,22.55615615]
[1721274865928,84.98354811,159.17,159.16,22.55615615]
[1721274867127,101.32814811,159.17,159.16,22.55615615]
[1721274867908,27.85354811,159.17,159.16,22.55615615]
[1721274868113,39.98354811,159.17,159.16,22.55615615]
[1721274870732,84.98354811,159.17,159.16,22.55615615]
[1721274874432,92.62625556,159.17,159.16,22.55615615]
[1721274874613,99.12661075,159.17,159.16,22.55615615]
[1721274876323,47.62625556,159.17,159.16,22.55615615]
[1721274877734,92.62625556,159.17,159.16,22.55615615]
[1721274878239,99.12783408,159.17,159.16,22.55615615]
[1721274879342,92.62625556,159.17,159.16,22.55615615]
[1721274881345,104.75625556,159.17,159.16,22.55615615]
[1721274882020,111.25838028,159.17,159.16,22.55615615]
[1721274883937,99.12838028,159.17,159.16,22.55615615]
[1721274889451,92.62625556,159.17,159.16,22.55615615]
[1721274892455,92.62625556,159.17,159.16,18.03865615]
[1721274892752,92.62625556,159.17,159.16,5.08375615]
[1721274892753,99.11736689,159.17,159.16,5.08375615]
[1721274892956,99.11736689,159.17,159.16,0.45215615]
[1721274893133,99.11736689,159.17,159.16,5.615e-05]
[1721274897358,111.24736689,159.17,159.16,5.615e-05]
[1721274901236,54.11736689,159.17,159.16,5.615e-05]
[1721274901443,47.62625556,159.17,159.16,5.615e-05]
[1721274902651,6.2845,159.12,159.11,15.16515615]
[1721274902833,63.4145,159.12,159.11,15.16515615]
[1721274905869,12.13,159.12,159.11,15.16515615]
[1721274910055,12.13,159.13,159.11,15.16515615]
[1721274910258,18.4142,159.13,159.11,15.16515615]
[1721274910771,18.4145,159.12,159.11,15.16515615]
[1721274910968,63.4145,159.12,159.11,15.16515615]
[1721274911581,6.2849,159.11,159.1,0.8264516]
[1721274911867,52.85603872,159.11,159.1,0.8264516]
[1721274912253,64.98603872,159.11,159.1,0.8264516]
[1721274932377,52.85603872,159.11,159.1,0.8264516]
[1721274932561,64.98603872,159.11,159.1,0.8264516]
[1721274933295,84.98603872,159.11,159.1,0.8264516]
[1721274933786,72.85603872,159.11,159.1,0.8264516]
[1721274933995,84.98603872,159.11,159.1,0.8264516]
[1721274941280,72.85603872,159.11,159.1,0.8264516]
[1721274941489,84.98603872,159.11,159.1,0.8264516]
[1721274947204,99.13894415,159.11,159.1,5.16e-05]
[1721274948283,119.29530543,159.11,159.1,5.16e-05]
[1721274948790,157.00530543,159.11,159.1,5.16e-05]
[1721274949197,169.13530543,159.11,159.1,5.16e-05]
[1721274949400,157.00530543,159.11,159.1,5.16e-05]
[1721274952504,169.13530543,159.11,159.1,5.16e-05]
[1721274952704,144.87530543,159.11,159.1,5.16e-05]
[1721274952906,6.2882,159.03,159.0,16.5693]
[1721274953114,12.13,159.01,159.0,16.5693]
[1721274953401,57.13,159.01,158.97,28.1551]
[1721274953593,6.2882,159.03,158.97,28.1551]
[1721274953907,45.0,159.02,158.97,28.1551]
[1721274954308,1.57113872,159.01,158.97,28.1551]
[1721274956625,1.57113872,159.01,158.97,21.8648]
[1721274957604,12.13,158.98,158.97,21.8648]
[1721274958788,12.13,158.98,158.97,6.1388]
[1721274958993,12.13,158.98,158.96,15.6548]
[1721274959308,12.13,158.97,158.96,15.6548]
[1721274962505,57.13,158.97,158.94,0.8264516]
[1721274962704,12.13,158.96,158.94,2.08469167]
[1721274963096,12.13,158.95,158.94,0.8264516]
[1721274964307,12.13,158.96,158.94,0.8264516]
[1721274965916,6.29,158.99,158.94,0.8264516]
[1721274966107,12.13,158.96,158.94,2.08458659]
[1721274966418,12.13,158.97,158.94,2.08458659]
[1721274966830,12.13,158.96,158.94,2.08458659]
[1721274967530,6.2901,158.98,158.94,2.08397761]
[1721274967737,1.57113872,159.01,158.94,17.81297761]
[1721274967905,12.13,158.98,158.94,24.10447761]
[1721274969729,18.4204,158.98,158.95,1.25801988]
[1721274969930,18.4204,158.98,158.94,0.8264516]
[1721274970104,12.13,158.97,158.94,0.8264516]
[1721274971011,12.13,158.96,158.94,0.8264516]
[1721274973812,17.29223872,159.03,158.94,0.8264516]
[1721274974019,12.13,158.97,158.94,0.8264516]
[1721274974830,18.4201,158.98,158.94,0.8264516]
[1721274975013,12.13,158.98,158.95,1.25804382]
[1721274975409,12.13,158.98,158.94,0.8264516]
[1721274975839,51.2905,158.97,158.94,0.8264516]
[1721274976327,12.13,158.96,158.94,0.8264516]
[1721274978133,51.2905,158.97,158.94,0.8264516]
[1721274978324,63.4205,158.97,158.94,0.8264516]
[1721274978940,12.13,158.96,158.94,0.8264516]
[1721274982839,57.13,158.97,158.94,0.8264516]
[1721274983739,12.13,158.97,158.94,0.8264516]
[1721274983948,12.13,158.99,158.95,1.25806918]
[1721274984115,7.85993872,159.02,158.96,16.39999372]
[1721274984324,21.93,159.07,159.0,6.2892]
[1721274984325,12.13,159.03,159.0,6.2892]
[1721274984623,1.57113872,159.05,159.01,1.25762253]
[1721274984624,12.13,159.04,159.01,1.25762253]
[1721274986345,6.2878,159.04,158.99,15.7234]
[1721274986532,12.13,159.02,159.0,1.25761401]
[1721274989338,6.2878,159.04,159.0,1.25761401]
[1721274989645,12.13,159.03,159.0,1.25761401]
[1721274990159,6.2878,159.04,159.0,1.25761401]
[1721274990333,12.13,159.03,159.0,1.25761401]
[1721274990845,6.2878,159.04,159.0,1.25761401]
[1721274991047,12.13,159.03,159.0,1.25761401]
[1721274993532,1.57113872,159.09,159.02,15.7212]
[1721274993728,12.13,159.07,159.02,27.8512]
[1721274994039,12.13,159.07,159.03,6.2877]
[1721274994459,7.85693872,159.09,159.03,6.2877]
[1721274994630,12.13,159.08,159.04,1.25677076]
[1721274994843,12.13,159.08,159.03,18.4177]
[1721274995853,18.4162,159.08,159.03,18.4177]
[1721274998162,18.4165,159.07,159.02,44.1632]
[1721274998340,18.4165,159.07,159.02,32.0332]
[1721274998941,6.2865,159.07,159.02,32.0332]
[1721274999857,6.2865,159.07,159.02,44.1632]
[1721275000037,18.4165,159.07,159.02,44.1632]
[1721275002542,18.4165,159.07,159.02,50.4517]
[1721275004174,12.13,159.04,159.0,6.2893]
[1721275004548,51.2871,159.06,159.0,18.4193]
[1721275004549,12.13,159.05,159.0,18.4193]
[1721275004956,12.13,159.05,159.01,6.2887]
[1721275005546,63.4171,159.06,159.01,6.2887]
[1721275006061,45.0,159.06,159.02,19.67568841]
[1721275006243,18.4165,159.07,159.02,19.67568841]
[1721275007949,12.13,159.06,159.02,1.25748841]
[1721275008350,18.417,159.06,159.01,18.4188]
[1721275008864,18.417,159.06,159.02,1.25745006]
[1721275009650,12.13,159.05,159.01,6.2888]
[1721275010161,6.287,159.06,159.01,18.4188]
[1721275011257,18.417,159.06,159.02,1.25746325]
[1721275012066,18.417,159.06,159.01,18.4188]
[1721275012255,6.287,159.06,159.01,6.2888]
[1721275012763,6.287,159.06,159.01,18.4188]
[1721275014772,12.13,159.03,158.98,15.6692]
[1721275014959,12.13,159.02,158.98,21.9592]
[1721275015155,12.13,159.0,158.95,1.25772621]
[1721275015356,57.13,158.99,158.96,1.25799509]
[1721275015869,57.13,158.99,158.94,28.9097516]
[1721275016076,57.13,158.99,158.95,6.291]
[1721275016477,12.13,158.99,158.96,6.2908]
[1721275016689,12.13,159.0,158.97,6.2904]
[1721275018164,12.13,159.0,158.96,6.2908]
[1721275018564,1.57113872,159.0,158.95,15.7272]
[1721275018863,12.13,158.99,158.95,15.7272]
[1721275019257,52.86043872,159.0,158.95,15.7272]
[1721275019258,12.13,158.98,158.95,15.7272]
[1721275019655,12.13,158.99,158.96,1.25800842]
[1721275020065,12.13,158.99,158.95,22.0183]
[1721275020880,12.13,158.98,158.95,15.7272]
[1721275021270,13.70113872,158.98,158.95,15.7272]
[1721275021659,12.13,158.97,158.95,15.7272]
[1721275022878,12.13,158.97,158.94,7.1180516]
[1721275023178,13.70113872,158.96,158.94,0.8264516]
[1721275023488,12.13,158.95,158.94,0.8264516]
[1721275031489,7.86163872,158.97,158.94,0.8264516]
[1721275031703,12.13,158.95,158.94,0.8264516]
[1721275034092,12.13,158.96,158.94,0.8264516]
[1721275034679,12.13,158.95,158.94,0.8264516]
[1721275041720,6.291,158.96,158.94,0.8264516]
[1721275042013,7.86143872,158.98,158.94,0.8264516]
[1721275042217,45.0,158.97,158.94,0.8264516]
[1721275042517,12.13,158.96,158.94,0.8264516]
[1721275045997,18.4211,158.96,158.94,0.8264516]
[1721275046617,18.4212,158.95,158.94,0.8264516]
[1721275050218,6.2869,159.07,159.0,6.289]
[1721275050422,1.57113872,159.09,159.02,6.2883]
[1721275050605,22.2646,159.1,159.03,7.54492154]
[1721275050606,12.13,159.07,159.03,7.54492154]
[1721275050790,23.83573872,159.1,159.03,16.97742154]
[1721275050990,22.3676,159.1,159.03,16.97742154]
[1721275051220,12.13,159.08,159.03,27.8502]
[1721275051515,12.13,159.08,159.04,6.2873]
[1721275051721,6.1824,159.14,159.06,15.7171]
[1721275051904,12.13,159.1,159.07,1.25699122]
[1721275052107,12.13,159.1,159.08,1.25707181]
[1721275053098,12.13,159.1,159.07,1.25704288]
[1721275053297,12.13,159.1,159.08,1.25704284]
[1721275053502,6.2846,159.12,159.08,1.25704284]
[1721275053707,12.13,159.1,159.08,1.25704284]
[1721275054005,12.13,159.11,159.08,1.25704284]
[1721275054319,12.13,159.11,159.06,34.1339]
[1721275054320,12.13,159.1,159.07,1.25702274]
[1721275054629,12.13,159.1,159.08,1.25703922]
[1721275054793,12.13,159.11,159.08,1.25703922]
[1721275054998,12.4665,159.14,159.08,13.38703922]
[1721275055223,12.13,159.13,159.08,13.38703922]
[1721275055601,6.2843,159.13,159.08,1.25703922]
[1721275055801,6.2843,159.13,159.09,12.13]
[1721275056003,6.2838,159.14,159.1,1.25680453]
[1721275056213,6.2838,159.14,159.11,1.25676393]
[1721275056794,6.2842,159.13,159.11,1.25676393]
[1721275057220,6.2842,159.13,159.1,1.2567769]
[1721275057427,6.2842,159.13,159.11,1.25678121]
[1721275058516,6.2842,159.13,159.1,1.25678257]
[1721275058821,6.2842,159.13,159.11,1.25662241]
[1721275059825,15.7056,159.18,159.09,12.13]
[1721275060022,6.2834,159.15,159.11,12.13]
[1721275060212,18.4133,159.16,159.12,1.25662087]
[1721275060411,6.2834,159.15,159.12,1.25662087]
[1721275060614,6.283,159.16,159.13,12.13]
[1721275060922,6.2833,159.15,159.14,1.25651617]
[1721275062024,6.2838,159.14,159.12,12.13]
[1721275062230,6.2838,159.14,159.13,1.25658534]
[1721275062722,1.57075832,159.19,159.13,13.38658534]
[1721275062723,6.2834,159.15,159.13,13.38658534]
[1721275062927,6.2829,159.17,159.13,13.38658534]
[1721275063228,6.2821,159.19,159.15,12.13]
[1721275063401,6.4702,159.21,159.16,1.25632056]
[1721275063606,1.57036306,159.23,159.16,13.38632056]
[1721275064425,6.2825,159.17,159.11,6.2849]
[1721275064635,6.2825,159.17,159.15,12.13]
[1721275066419,6.2825,159.17,159.16,1.25636984]
[1721275066628,6.2831,159.16,159.13,1.25637436]
[1721275067136,6.2837,159.14,159.11,12.13]
[1721275067428,6.2834,159.15,159.12,1.25658974]
[1721275069132,6.2834,159.15,159.11,12.13]
[1721275070040,6.2828,159.17,159.13,12.13]
[1721275070224,6.2828,159.17,159.14,1.25649986]
[1721275070422,6.2828,159.17,159.15,1.25649911]
[1721275071313,6.2821,159.19,159.15,1.25649911]
[1721275072539,6.2821,159.18,159.15,1.25649911]
[1721275073433,6.2817,159.2,159.15,13.38649911]
[1721275073626,6.2808,159.22,159.15,1.25649911]
[1721275073937,6.2808,159.22,159.17,12.13]
[1721275075036,6.2808,159.22,159.18,0.94260966]
[1721275075413,6.2808,159.22,159.18,13.07260966]
[1721275075734,6.2808,159.22,159.19,12.13]
[1721275075937,6.2811,159.21,159.18,12.13]
[1721275076115,6.2811,159.21,159.17,12.13]
[1721275076615,6.2811,159.21,159.18,1.25610613]
[1721275077137,18.4106,159.22,159.18,1.25610613]
[1721275077440,6.2806,159.22,159.18,13.38610613]
[1721275077612,6.2806,159.22,159.19,1.25603121]
[1721275078417,18.4102,159.23,159.19,1.25603121]
[1721275078942,6.2802,159.23,159.19,13.38603121]
[1721275079620,12.13,159.25,159.2,12.13]
[1721275079815,31.2352,159.28,159.21,13.38588403]
[1721275079816,12.13,159.26,159.21,13.38588403]
[1721275080134,18.4093,159.26,159.21,13.38588403]
[1721275080634,12.13,159.24,159.22,1.25577762]
[1721275080838,6.2802,159.23,159.22,1.25577762]
[1721275081139,12.13,159.25,159.22,1.25577762]
[1721275081444,12.13,159.25,159.23,1.25581735]
[1721275081734,6.2799,159.24,159.2,12.13]
[1721275081933,6.2799,159.24,159.21,0.94196118]
[1721275082836,16.0299,159.31,159.22,1.25584793]
[1721275083040,16.0299,159.31,159.23,12.13]
[1721275083351,17.59940542,159.31,159.24,1.25560433]
[1721275083633,6.2781,159.29,159.24,1.25560433]
[1721275083840,6.2783,159.28,159.24,1.25560433]
[1721275084267,6.2795,159.25,159.21,12.13]
[1721275084447,6.2795,159.25,159.2,18.4112]
[1721275085044,6.2795,159.25,159.2,12.13]
[1721275085739,6.2795,159.25,159.2,18.4114]
[1721275086123,6.2795,159.25,159.21,0.9416141]
[1721275086823,6.2789,159.27,159.21,7.2226141]
[1721275087023,6.279,159.26,159.21,7.2226141]
[1721275087943,1.56971462,159.29,159.19,6.2814]
[1721275088136,46.56971462,159.29,159.19,18.4114]
[1721275088844,6.2794,159.26,159.19,18.4114]
[1721275089645,6.2798,159.24,159.19,12.13]
[1721275089846,6.2798,159.24,159.18,34.1165]
[1721275090148,12.13,159.22,159.18,21.9865]
[1721275090543,12.13,159.22,159.19,7.53774892]
[1721275090729,12.13,159.23,159.19,7.53774892]
[1721275091043,18.4099,159.24,159.19,19.66774892]
[1721275091229,12.13,159.23,159.19,7.53774892]
[1721275091429,18.4099,159.24,159.19,19.66774892]
[1721275091642,12.13,159.23,159.19,7.53774892]
[1721275092646,6.2794,159.25,159.2,6.2813]
[1721275092946,12.13,159.24,159.21,1.25581671]
[1721275094124,6.2799,159.24,159.18,15.7045]
[1721275094432,12.13,159.23,159.18,34.1163]
[1721275096430,12.13,159.23,159.19,7.53747801]
[1721275098934,18.4098,159.24,159.19,7.53747801]
[1721275100653,12.13,159.23,159.19,7.53747801]
[1721275101750,12.13,159.23,159.19,6.2815]
[1721275102643,12.13,159.23,159.18,34.1166]
[1721275102847,16.306,159.25,159.18,15.7045]
[1721275103040,12.13,159.21,159.18,15.7045]
[1721275103942,12.13,159.22,159.18,15.7045]
[1721275104269,12.13,159.22,159.18,21.9866]
[1721275104868,12.13,159.21,159.16,6.2827]
[1721275105157,12.13,159.18,159.15,15.7083]
[1721275105356,12.13,159.19,159.15,21.9916]
[1721275105562,12.13,159.21,159.17,6.2824]
[1721275105858,12.13,159.21,159.16,18.4129]
[1721275106158,12.13,159.2,159.16,6.2829]
[1721275106463,12.13,159.2,159.15,15.7083]
[1721275106634,6.2822,159.18,159.12,21.9954]
[1721275106962,12.13,159.17,159.12,27.8413]
[1721275107143,12.13,159.17,159.13,6.284]
[1721275107335,12.13,159.18,159.14,6.2835]
[1721275107537,12.13,159.18,159.15,7.53971173]
[1721275107937,12.13,159.19,159.16,6.2829]
[1721275108136,12.13,159.2,159.17,1.25625265]
[1721275108442,12.13,159.22,159.19,6.2816]
[1721275108639,12.13,159.22,159.2,1.25607719]
[1721275109259,12.13,159.23,159.2,1.25607719]
[1721275109443,12.13,159.23,159.21,1.25604724]
[1721275109753,12.13,159.23,159.19,1.25604739]
[1721275109754,6.2804,159.23,159.19,1.25604739]
[1721275109955,12.13,159.21,159.19,1.25604739]
[1721275110346,12.13,159.22,159.19,1.25604739]
[1721275111742,12.13,159.22,159.2,1.25609525]
[1721275112835,12.13,159.22,159.19,1.25608886]
[1721275114140,12.13,159.22,159.17,12.13]
[1721275114141,1.57011117,159.22,159.15,15.7083]
[1721275114356,12.13,159.18,159.15,15.7083]
[1721275117164,6.2817,159.2,159.14,6.2835]
[1721275117368,12.13,159.17,159.14,6.2835]
[1721275117746,1.57053184,159.23,159.14,6.2835]
[1721275117747,12.13,159.16,159.14,6.2835]
[1721275118576,11.13,159.16,159.12,15.7113]
[1721275118756,12.13,159.17,159.15,6.2833]
[1721275120179,12.13,159.17,159.13,6.2838]
[1721275121069,12.13,159.16,159.12,15.7113]
[1721275121466,12.13,159.16,159.12,21.9956]
[1721275121857,12.13,159.15,159.12,21.9956]
[1721275122358,12.13,159.17,159.14,6.2834]
[1721275122957,12.13,159.17,159.15,1.256483]
[1721275123972,12.13,159.17,159.14,6.2834]
[1721275124466,12.13,159.17,159.13,6.2841]
[1721275124682,12.13,159.16,159.13,6.2841]
[1721275126255,12.13,159.17,159.13,6.2841]
[1721275127483,12.13,159.17,159.14,7.53998536]
[1721275127681,12.13,159.17,159.15,1.25648548]
[1721275127993,12.13,159.17,159.14,6.2835]
[1721275128200,12.13,159.16,159.14,6.2835]
[1721275129168,12.13,159.16,159.15,1.2565255]
[1721275129386,16.6038,159.19,159.16,6.2829]
[1721275129387,12.13,159.19,159.16,6.2829]
[1721275129562,12.13,159.19,159.17,1.25633117]
[1721275129762,12.13,159.19,159.18,1.25633135]
[1721275129988,12.13,159.19,159.16,6.2829]
[1721275130169,12.13,159.19,159.17,1.25630446]
[1721275130486,12.13,159.19,159.16,6.2829]
[1721275130866,12.13,159.19,159.17,1.25630481]
[1721275131589,23.64190653,159.23,159.18,1.25630496]
[1721275131781,12.13,159.21,159.18,1.25630496]
[1721275131985,12.13,159.22,159.18,1.25630496]
[1721275132182,12.13,159.22,159.18,7.53840496]
[1721275132564,31.9717,159.27,159.19,15.7044]
[1721275132565,12.13,159.23,159.19,15.7044]
[1721275132769,12.13,159.24,159.2,1.25599848]
[1721275133090,1.57009051,159.26,159.21,1.25595996]
[1721275133259,12.13,159.23,159.21,1.25595996]
[1721275133458,16.275,159.27,159.21,1.25595996]
[1721275133459,12.13,159.24,159.21,1.25595996]
[1721275133889,12.13,159.24,159.21,7.53665996]
[1721275134188,12.13,159.25,159.21,7.53665996]
[1721275134769,12.13,159.25,159.21,6.2807]
[1721275135297,12.13,159.24,159.2,6.2813]
[1721275135467,12.13,159.23,159.19,15.7044]
[1721275135868,16.275,159.27,159.2,13.38600544]
[1721275135869,6.2797,159.25,159.2,13.38600544]
[1721275136084,18.4097,159.25,159.21,1.25581133]
[1721275136480,12.13,159.25,159.21,1.25581133]
[1721275137095,6.279,159.26,159.21,7.53671133]
[1721275137261,12.13,159.26,159.21,7.53671133]
[1721275137560,12.13,159.27,159.22,12.13]
[1721275137763,12.13,159.28,159.24,6.2797]
[1721275137962,12.13,159.28,159.25,1.25556172]
[1721275138164,12.13,159.28,159.24,6.2797]
[1721275138792,6.2779,159.29,159.23,6.2801]
[1721275138969,12.13,159.27,159.23,6.2801]
[1721275140159,12.13,159.26,159.23,6.2801]
[1721275140393,12.13,159.25,159.23,6.2801]
[1721275141205,12.13,159.26,159.23,6.2801]
[1721275141897,1.5695104,159.3,159.23,6.2801]
[1721275142099,12.13,159.26,159.23,6.2801]
[1721275142281,12.13,159.25,159.23,6.2801]
[1721275143010,12.13,159.26,159.23,6.28]
[1721275143598,12.13,159.27,159.25,6.2794]
[1721275143787,22.662,159.31,159.26,1.25571152]
[1721275143997,12.13,159.28,159.27,1.25556973]
[1721275144178,12.13,159.28,159.25,6.2794]
[1721275144381,12.13,159.28,159.26,1.25561772]
[1721275145492,12.13,159.27,159.25,6.2794]
[1721275149006,12.13,159.28,159.25,6.2794]
[1721275149207,12.13,159.29,159.25,6.2794]
[1721275150687,12.13,159.29,159.26,1.255583]
[1721275150892,12.13,159.29,159.27,1.255583]
[1721275151094,12.13,159.28,159.25,6.2794]
[1721275152714,12.13,159.26,159.22,15.7012]
[1721275152915,12.13,159.25,159.22,15.7012]
[1721275153302,12.13,159.25,159.22,21.9817]
[1721275153493,12.13,159.25,159.23,6.2802]
[1721275153696,12.13,159.25,159.22,15.7012]
[1721275153995,12.13,159.25,159.22,21.9817]
[1721275156098,12.13,159.25,159.23,6.2802]
[1721275156806,12.13,159.25,159.22,15.7012]
[1721275157204,12.13,159.25,159.22,21.9816]
[1721275160413,7.8480981,159.28,159.23,6.2802]
[1721275160721,7.8480981,159.28,159.23,7.53602805]
[1721275160895,7.8480981,159.28,159.23,6.2802]
[1721275162401,7.8480981,159.28,159.23,7.53605146]
[1721275162723,7.8480981,159.28,159.23,6.2802]
[1721275163026,7.8480981,159.28,159.22,21.9817]
[1721275165296,6.2786,159.27,159.22,21.9817]
[1721275165618,12.13,159.25,159.23,6.2802]
[1721275166018,12.13,159.26,159.23,6.2802]
[1721275166326,12.13,159.25,159.23,6.2802]
[1721275166624,12.13,159.25,159.22,21.9817]
[1721275167319,7.8479981,159.28,159.22,21.9817]
[1721275167626,12.13,159.25,159.22,21.9817]
[1721275171324,12.13,159.25,159.23,1.25587447]
[1721275171536,12.13,159.25,159.22,21.9817]
[1721275174358,12.13,159.25,159.23,1.25587429]
[1721275175344,12.13,159.25,159.22,21.9817]
[1721275176338,12.13,159.25,159.22,15.7012]
[1721275177627,6.2786,159.27,159.22,15.7012]
[1721275177935,12.13,159.24,159.22,15.7012]
[1721275179302,1.56989231,159.26,159.19,21.9856]
[1721275179531,12.13,159.22,159.19,21.9856]
[1721275180210,12.13,159.21,159.19,15.7042]
[1721275181010,6.2798,159.24,159.19,21.9859]
[1721275181222,12.13,159.22,159.19,21.9859]
[1721275182729,1.57010953,159.23,159.19,21.9859]
[1721275182908,12.13,159.21,159.19,21.9859]
[1721275184009,6.2798,159.24,159.2,1.2561585]
[1721275184205,12.13,159.22,159.2,1.2561585]
[1721275184433,12.13,159.21,159.19,15.7042]
[1721275184732,12.13,159.22,159.19,15.7042]
[1721275184944,12.13,159.22,159.2,1.25619797]
[1721275185540,6.2798,159.24,159.2,1.25619797]
[1721275185761,12.13,159.22,159.2,1.25619797]
[1721275186226,12.13,159.21,159.2,1.25619797]
[1721275186425,12.13,159.21,159.19,15.7042]
[1721275187741,12.13,159.2,159.18,6.282]
[1721275192353,12.13,159.19,159.18,6.282]
[1721275192555,12.13,159.19,159.17,6.2825]
[1721275193147,12.13,159.19,159.18,6.2821]
[1721275194387,12.13,159.19,159.16,15.7073]
[1721275194575,12.13,159.17,159.16,21.9902]